bitfinex-derivatives/quotes_BTCF0:USTF0_20250517
["timestamp","ask_amount","ask_price","bid_price","bid_amount"]
[1747443133927,0.2497,103310.0,103300.0,1.85108853]
[1747443134226,0.05814122,103320.0,103310.0,0.1935309]
[1747443134416,0.08894122,103320.0,103310.0,1.09830973]
[1747443135326,0.23734122,103320.0,103310.0,1.42908856]
[1747443135625,0.23734122,103320.0,103310.0,1.35710973]
[1747443136226,0.23734122,103320.0,103310.0,1.366657]
[1747443136629,0.23834122,103320.0,103310.0,1.366657]
[1747443136830,0.23834122,103320.0,103310.0,1.866657]
[1747443137723,0.26914122,103320.0,103310.0,1.866657]
[1747443138324,0.0333,103330.0,103320.0,0.1935122]
[1747443138525,1e-08,103330.0,103320.0,1.62418996]
[1747443138722,0.0634,103340.0,103330.0,0.1934935]
[1747443139033,0.0634,103340.0,103330.0,1.06937233]
[1747443139334,0.2434,103340.0,103330.0,1.06937233]
[1747443139826,0.2444,103340.0,103330.0,1.56937233]
[1747443140928,0.2444,103340.0,103330.0,1.82789233]
[1747443141629,0.2444,103340.0,103330.0,1.56937233]
[1747443141832,0.2444,103340.0,103330.0,2.02597233]
[1747443142035,0.2444,103340.0,103330.0,1.50817233]
[1747443142036,0.2768,103340.0,103330.0,1.50817233]
[1747443142237,0.2768,103340.0,103330.0,1.53867233]
[1747443142829,0.2768,103340.0,103330.0,1.95557233]
[1747443143130,0.2768,103340.0,103330.0,2.21397233]
[1747443144827,0.2768,103340.0,103330.0,2.24567233]
[1747443145024,0.002,103360.0,103350.0,0.193456]
[1747443145228,0.182,103360.0,103350.0,1.44181366]
[1747443145422,0.182,103360.0,103350.0,1.89131366]
[1747443145825,0.182,103360.0,103350.0,1.81933483]
[1747443146125,0.186,103360.0,103350.0,1.09773483]
[1747443146325,0.216,103360.0,103350.0,1.18853483]
[1747443146626,0.216,103360.0,103350.0,1.48853483]
[1747443146839,0.187,103360.0,103350.0,1.81979366]
[1747443147130,0.187,103360.0,103350.0,2.57799366]
[1747443147328,0.03,103370.0,103360.0,0.1934373]
[1747443147530,0.001,103380.0,103370.0,0.1934186]
[1747443147731,0.001,103380.0,103370.0,1.27827743]
[1747443148131,0.181,103380.0,103370.0,1.27827743]
[1747443148333,0.245,103380.0,103370.0,1.27827743]
[1747443148534,0.245,103380.0,103370.0,1.27727743]
[1747443148930,0.248,103380.0,103370.0,1.27727743]
[1747443149319,0.248,103380.0,103370.0,1.77727743]
[1747443149525,0.245,103380.0,103370.0,1.77727743]
[1747443149728,0.247,103380.0,103370.0,1.79171746]
[1747443150035,0.249,103380.0,103370.0,1.79171746]
[1747443150735,0.2788,103380.0,103370.0,1.79171746]
[1747443151231,0.2788,103380.0,103370.0,2.20861746]
[1747443151436,0.248,103380.0,103370.0,2.20861746]
[1747443152133,0.2151,103380.0,103370.0,2.20861746]
[1747443152434,0.2151,103380.0,103370.0,2.21829328]
[1747443154233,0.2151,103380.0,103370.0,2.47613328]
[1747443154436,0.2151,103380.0,103370.0,2.40415445]
[1747443154731,0.28204216,103380.0,103370.0,1.95901328]
[1747443154941,0.28204216,103380.0,103370.0,2.20713746]
[1747443156540,0.28204216,103380.0,103370.0,2.21691605]
[1747443157141,0.28204216,103380.0,103370.0,2.13515863]
[1747443157437,0.47544216,103380.0,103370.0,1.0724186]
[1747443158244,0.98822099,103380.0,103370.0,0.85]
[1747443158445,0.90742099,103380.0,103370.0,0.8134187]
[1747443158648,1.26822099,103380.0,103370.0,0.8134187]
[1747443160444,1.26822099,103380.0,103370.0,0.6934187]
[1747443162646,1.68693582,103380.0,103370.0,0.5]
[1747443162950,1.94473582,103380.0,103370.0,0.5]
[1747443163245,1.94473582,103380.0,103370.0,0.6934186]
[1747443163548,1.94473582,103380.0,103350.0,0.29210778]
[1747443163549,0.1934373,103360.0,103350.0,0.29210778]
[1747443163737,1.26361613,103360.0,103350.0,0.29210778]
[1747443163941,1.96436813,103360.0,103350.0,0.29210778]
[1747443164146,2.14436813,103360.0,103350.0,0.29210778]
[1747443164852,2.14436813,103360.0,103350.0,0.29410778]
[1747443165244,1.89436813,103360.0,103350.0,0.29410778]
[1747443165649,2.14436813,103360.0,103350.0,0.50393508]
[1747443165949,2.14436813,103360.0,103350.0,0.69739118]
[1747443166544,2.14436813,103360.0,103350.0,0.69939118]
[1747443168952,2.14436813,103360.0,103350.0,0.73209118]
[1747443170746,2.14981029,103360.0,103350.0,0.73209118]
[1747443171249,1.89981029,103360.0,103350.0,0.73209118]
[1747443177362,1.35059946,103360.0,103350.0,1.20903127]
[1747443177554,0.80577946,103360.0,103350.0,1.24003127]
[1747443178756,0.90785829,103360.0,103350.0,1.15003127]
[1747443180061,0.83587946,103360.0,103350.0,1.15003127]
[1747443180754,0.90785829,103360.0,103350.0,1.15003127]
[1747443181863,1.58865829,103360.0,103350.0,0.76309108]
[1747443182165,1.58865829,103360.0,103350.0,0.53863508]
[1747443182957,1.58865829,103360.0,103350.0,0.73209108]
[1747443183263,1.58865829,103360.0,103350.0,0.73009108]
[1747443183463,1.58865829,103360.0,103350.0,0.73109108]
[1747443184060,1.58865829,103360.0,103350.0,0.76139108]
[1747443184366,1.29667946,103360.0,103350.0,1.14833117]
[1747443184866,0.93587946,103360.0,103350.0,1.17863117]
[1747443185068,1.00785829,103360.0,103350.0,1.17863117]
[1747443185256,1.00785829,103360.0,103350.0,1.19863117]
[1747443185863,0.87297946,103360.0,103350.0,1.19863117]
[1747443186061,0.99619946,103360.0,103350.0,1.54863117]
[1747443186260,0.73967946,103360.0,103350.0,1.54863117]
[1747443186869,0.54624216,103360.0,103350.0,1.62061]
[1747443187167,0.73967946,103360.0,103350.0,1.62061]
[1747443187566,0.18544216,103360.0,103350.0,1.98141]
[1747443187860,0.18544216,103360.0,103350.0,2.39831]
[1747443188165,0.18544216,103360.0,103350.0,2.32633117]
[1747443188363,0.37887946,103360.0,103350.0,2.39831]
[1747443188669,0.18544216,103360.0,103350.0,2.39831]
[1747443188868,0.18544216,103360.0,103350.0,2.32633117]
[1747443189870,0.18544216,103360.0,103350.0,2.29633117]
[1747443191670,0.18544216,103360.0,103350.0,2.36831]
[1747443191871,0.18544216,103360.0,103350.0,2.44028883]
[1747443192065,0.03158035,103380.0,103370.0,0.1934186]
[1747443192272,0.03158035,103380.0,103370.0,1.36313752]
[1747443192480,0.03158035,103380.0,103370.0,1.46113752]
[1747443193066,0.21158035,103380.0,103370.0,1.46113752]
[1747443193266,0.21358035,103380.0,103370.0,1.96113752]
[1747443194963,0.21558035,103380.0,103370.0,1.96113752]
[1747443195673,0.181,103380.0,103370.0,1.96513752]
[1747443196873,0.181,103380.0,103370.0,1.89315869]
[1747443197772,0.181,103380.0,103370.0,1.96513752]
[1747443199178,0.18644216,103380.0,103370.0,1.96513752]
[1747443205579,0.18644216,103380.0,103370.0,1.60433752]
[1747443205880,0.18644216,103380.0,103370.0,1.96513752]
[1747443207779,0.18644216,103380.0,103370.0,1.89315869]
[1747443207985,0.21794216,103380.0,103370.0,1.96513752]
[1747443208165,0.41134216,103380.0,103370.0,1.33888864]
[1747443208476,0.41134216,103380.0,103370.0,0.7623186]
[1747443208682,0.47644216,103380.0,103370.0,1.1231186]
[1747443208974,0.47644216,103380.0,103370.0,0.7623186]
[1747443209178,0.47644216,103380.0,103370.0,1.1231186]
[1747443210475,0.44454216,103380.0,103370.0,1.14925869]
[1747443210678,0.44454216,103380.0,103370.0,1.51005869]
[1747443211374,0.47704216,103380.0,103370.0,1.14925869]
[1747443211772,0.47704216,103380.0,103370.0,1.51005869]
[1747443212066,0.47704216,103380.0,103370.0,1.14925869]
[1747443212273,0.47704216,103380.0,103370.0,1.51005869]
[1747443212475,0.47704216,103380.0,103370.0,1.14925869]
[1747443213172,0.47704216,103380.0,103370.0,1.51005869]
[1747443215384,0.47704216,103380.0,103370.0,1.58005869]
[1747443217679,0.47704216,103380.0,103370.0,0.7623186]
[1747443219283,0.54902099,103380.0,103370.0,0.7623186]
[1747443219481,0.48704216,103380.0,103370.0,0.7623186]
[1747443223391,0.48704216,103380.0,103370.0,0.95578865]
[1747443223982,0.48704216,103380.0,103370.0,1.14925869]
[1747443225490,0.26114216,103380.0,103370.0,1.02776748]
[1747443225795,0.24240486,103380.0,103370.0,1.94203752]
[1747443226091,0.43580476,103380.0,103370.0,1.951713]
[1747443227891,0.43580476,103380.0,103370.0,1.87973417]
[1747443229894,0.44192241,103380.0,103370.0,1.87973417]
[1747443232887,0.41042241,103380.0,103370.0,1.68626412]
[1747443233092,0.21702251,103380.0,103370.0,1.951713]
[1747443233588,0.2270165,103380.0,103370.0,1.951713]
[1747443237300,0.18644216,103380.0,103370.0,1.951713]
[1747443243804,0.18644216,103380.0,103370.0,1.982113]
[1747443244308,0.18644216,103380.0,103370.0,2.236193]
[1747443248808,0.12655501,103400.0,103390.0,0.1933813]
[1747443248995,0.06488035,103420.0,103410.0,0.1933439]
[1747443249306,0.06488035,103420.0,103410.0,0.98612273]
[1747443249607,0.06488035,103420.0,103410.0,2.15810165]
[1747443249806,0.06488035,103420.0,103410.0,2.08612282]
[1747443250210,0.24488035,103420.0,103410.0,2.08612282]
[1747443250402,0.24488035,103420.0,103410.0,2.58512282]
[1747443251213,0.24488035,103420.0,103410.0,2.58912282]
[1747443251510,0.24488035,103420.0,103410.0,2.59012282]
[1747443251907,0.21158035,103420.0,103410.0,2.7243516]
[1747443252111,0.21158035,103420.0,103410.0,2.91782165]
[1747443253429,0.06928115,103430.0,103420.0,0.1933252]
[1747443253629,0.06928115,103430.0,103420.0,1.43594412]
[1747443254230,0.24928115,103430.0,103420.0,1.43594412]
[1747443254436,0.23098095,103430.0,103420.0,1.43594412]
[1747443254638,0.23098095,103430.0,103420.0,1.44884876]
[1747443254830,0.23098095,103430.0,103420.0,1.94884876]
[1747443256229,0.26418095,103430.0,103420.0,1.94884876]
[1747443256734,0.26418095,103430.0,103420.0,1.87686993]
[1747443256940,0.29498095,103430.0,103420.0,1.94884876]
[1747443257743,0.48828745,103430.0,103420.0,1.94884876]
[1747443257945,0.57026628,103430.0,103420.0,1.0882252]
[1747443258131,0.49828745,103430.0,103420.0,1.0882252]
[1747443258637,0.48828745,103430.0,103420.0,1.0882252]
[1747443258842,0.48828745,103430.0,103420.0,1.51210403]
[1747443259440,0.2766,103430.0,103420.0,1.89904412]
[1747443259638,0.2766,103430.0,103420.0,1.70557408]
[1747443259942,0.2766,103430.0,103420.0,1.89904412]
[1747443260244,0.28204216,103430.0,103420.0,1.89904412]
[1747443265839,0.28204216,103430.0,103420.0,1.82706529]
[1747443266046,0.28204216,103430.0,103420.0,1.89904412]
[1747443267237,0.28204216,103430.0,103420.0,1.92934412]
[1747443267538,0.28204216,103430.0,103420.0,1.94934412]
[1747443269950,0.21804216,103430.0,103420.0,1.94934412]
[1747443271048,0.21804216,103430.0,103420.0,1.60934412]
[1747443271256,0.21804216,103430.0,103420.0,1.94934412]
[1747443272251,0.21804216,103430.0,103420.0,1.94918944]
[1747443272685,0.28304216,103430.0,103420.0,1.94918944]
[1747443273681,0.25014216,103430.0,103420.0,1.94918944]
[1747443274889,0.21804216,103430.0,103420.0,2.17160944]
[1747443275173,0.21804216,103430.0,103420.0,2.20300944]
[1747443275574,0.18544216,103430.0,103420.0,2.20300944]
[1747443280279,0.18544216,103430.0,103420.0,1.95028944]
[1747443280468,0.18544216,103430.0,103420.0,2.45544944]
[1747443280664,0.18544216,103430.0,103420.0,1.95028944]
[1747443280870,0.18544216,103430.0,103420.0,2.20288944]
[1747443282855,0.18544216,103430.0,103420.0,2.00941939]
[1747443283054,0.18544216,103430.0,103420.0,2.20288944]
[1747443283551,0.24964216,103430.0,103420.0,2.35199061]
[1747443284055,0.24964216,103430.0,103420.0,2.42396944]
[1747443285157,0.24964216,103430.0,103420.0,1.91888944]
[1747443285461,0.24964216,103430.0,103420.0,2.17148944]
[1747443289257,0.26806422,103430.0,103420.0,2.14663988]
[1747443290357,0.26806422,103430.0,103420.0,1.78583988]
[1747443290564,0.26806422,103430.0,103420.0,2.14663988]
[1747443290797,0.26806422,103430.0,103420.0,1.89403988]
[1747443290990,0.26806422,103430.0,103420.0,2.14663988]
[1747443291672,0.26806422,103430.0,103420.0,2.19376915]
[1747443291877,0.20386422,103430.0,103420.0,2.19376915]
[1747443292372,0.26616422,103430.0,103420.0,2.19376915]
[1747443293259,0.28066422,103430.0,103420.0,1.94116915]
[1747443293456,0.28066422,103430.0,103420.0,1.89403988]
[1747443295266,0.28066422,103430.0,103420.0,1.91872975]
[1747443302171,0.28066422,103430.0,103420.0,2.17132975]
[1747443303777,0.28066422,103430.0,103420.0,1.81052975]
[1747443304073,0.31276422,103430.0,103420.0,2.17132975]
[1747443304272,0.31276422,103430.0,103420.0,2.20152975]
[1747443304460,0.28066422,103430.0,103420.0,2.20152975]
[1747443305474,0.28066422,103430.0,103420.0,2.12971061]
[1747443305672,0.31076422,103430.0,103420.0,2.20152975]
[1747443306680,0.29234216,103430.0,103420.0,2.20152975]
[1747443306864,0.29234216,103430.0,103420.0,2.12971061]
[1747443307068,0.29234216,103430.0,103420.0,2.20152975]
[1747443307673,0.29234216,103430.0,103420.0,2.12971061]
[1747443307878,0.29234216,103430.0,103420.0,1.59691061]
[1747443308079,0.36234216,103430.0,103420.0,1.57872975]
[1747443308378,0.36234216,103430.0,103420.0,1.83040975]
[1747443308676,0.36234216,103430.0,103420.0,1.93872975]
[1747443308877,0.36234216,103430.0,103420.0,2.19040975]
[1747443309880,0.36234216,103430.0,103420.0,2.11859061]
[1747443310178,0.36234216,103430.0,103420.0,2.19040975]
[1747443311673,0.29234216,103430.0,103420.0,2.15040975]
[1747443311873,0.31501216,103430.0,103420.0,2.15040975]
[1747443312570,0.31501216,103430.0,103420.0,2.18040975]
[1747443312876,0.31501216,103430.0,103420.0,1.9869397]
[1747443313177,0.31501216,103430.0,103420.0,1.73165052]
[1747443313379,0.50831946,103430.0,103420.0,0.75917052]
[1747443313578,0.79831946,103430.0,103420.0,0.75917052]
[1747443315880,1.04979946,103430.0,103420.0,0.75917052]
[1747443318577,1.55443056,103430.0,103420.0,0.72727052]
[1747443319071,1.80443056,103430.0,103420.0,0.72727052]
[1747443320985,1.80443056,103430.0,103420.0,0.69617052]
[1747443321287,1.59511826,103430.0,103420.0,0.503]
[1747443321683,1.59511826,103430.0,103420.0,0.6963261]
[1747443321986,1.60472349,103430.0,103420.0,0.5346]
[1747443322986,1.60472349,103430.0,103420.0,0.503]
[1747443324090,1.60472349,103430.0,103420.0,0.5341]
[1747443327388,1.35324349,103430.0,103420.0,0.5341]
[1747443327691,1.60440349,103430.0,103420.0,0.5341]
[1747443331087,0.1933447,103410.0,103400.0,0.1933486]
[1747443331298,0.6115278,103410.0,103400.0,0.61318869]
[1747443331594,0.6270847,103410.0,103400.0,0.64618869]
[1747443332098,0.8070847,103410.0,103400.0,0.65118869]
[1747443332293,0.8397847,103410.0,103400.0,0.68218869]
[1747443332495,1.1364847,103410.0,103400.0,0.45984009]
[1747443332691,1.3716847,103410.0,103400.0,1.15320349]
[1747443332886,1.4188278,103410.0,103400.0,1.15220349]
[1747443333087,1.4188278,103410.0,103400.0,1.15120349]
[1747443333603,1.4188278,103410.0,103400.0,0.95484009]
[1747443333894,1.4188278,103410.0,103400.0,0.95584009]
[1747443334095,1.44337394,103410.0,103400.0,0.26237005]
[1747443334294,1.45787394,103410.0,103400.0,0.26237005]
[1747443334696,1.45787394,103410.0,103400.0,0.25937005]
[1747443334893,1.45787394,103410.0,103400.0,0.45284009]
[1747443335482,0.1933634,103400.0,103390.0,0.00193433]
[1747443335791,0.1933821,103390.0,103380.0,0.2259977]
[1747443335999,0.8987021,103390.0,103380.0,0.61293779]
[1747443336200,1.1887021,103390.0,103380.0,0.61293779]
[1747443336492,0.6508,103390.0,103380.0,0.79008089]
[1747443336692,0.3733822,103390.0,103380.0,1.42802399]
[1747443336889,0.3733822,103390.0,103380.0,1.83373779]
[1747443337095,0.3733822,103390.0,103380.0,1.32293779]
[1747443337292,0.4360822,103390.0,103380.0,1.32293779]
[1747443337500,0.4969822,103390.0,103380.0,1.11493779]
[1747443337693,0.7478222,103390.0,103380.0,1.11493779]
[1747443337899,0.7170222,103390.0,103380.0,1.11493779]
[1747443338198,0.74156834,103390.0,103380.0,1.11493779]
[1747443338696,0.74156834,103390.0,103380.0,1.14663779]
[1747443338997,0.67876834,103390.0,103380.0,1.18113779]
[1747443339195,0.42792834,103390.0,103380.0,1.18113779]
[1747443339597,0.42792834,103390.0,103380.0,1.17713779]
[1747443340395,0.42792834,103390.0,103380.0,1.17913779]
[1747443341101,0.42792834,103390.0,103380.0,1.17713779]
[1747443341300,0.42792834,103390.0,103380.0,1.18013779]
[1747443343106,0.42177862,103390.0,103380.0,1.18013779]
[1747443344307,0.67245862,103390.0,103380.0,1.18013779]
[1747443348518,0.42177862,103390.0,103380.0,1.18013779]
[1747443348720,0.67233862,103390.0,103380.0,1.18013779]
[1747443350651,0.67778078,103390.0,103380.0,1.18013779]
[1747443350850,0.67778078,103390.0,103380.0,0.98666775]
[1747443351049,0.67778078,103390.0,103380.0,1.18013779]
[1747443354921,0.64778078,103390.0,103380.0,1.20013779]
[1747443355821,0.64754078,103390.0,103380.0,1.20013779]
[1747443357321,0.67018078,103390.0,103380.0,1.20013779]
[1747443357525,0.76688078,103390.0,103380.0,1.20013779]
[1747443360922,0.76688078,103390.0,103380.0,1.19713779]
[1747443361312,0.74848436,103390.0,103380.0,1.19513779]
[1747443362627,0.49816436,103390.0,103380.0,1.19513779]
[1747443362820,0.75824436,103390.0,103380.0,1.19513779]
[1747443363224,0.50816436,103390.0,103380.0,1.19513779]
[1747443363425,0.75824436,103390.0,103380.0,1.19513779]
[1747443364921,0.7827905,103390.0,103380.0,1.19513779]
[1747443370026,0.79893497,103390.0,103380.0,1.19513779]
[1747443370832,0.79865497,103390.0,103380.0,1.19513779]
[1747443371534,0.79861497,103390.0,103380.0,1.19513779]
[1747443373134,1.20655807,103390.0,103380.0,0.72517004]
[1747443373437,1.57655807,103390.0,103380.0,0.5317]
[1747443373639,1.57655807,103390.0,103380.0,0.7251007]
[1747443373932,1.54586112,103390.0,103380.0,0.7251007]
[1747443375132,0.50815802,103390.0,103380.0,0.7251007]
[1747443375438,0.50815802,103390.0,103380.0,1.39374079]
[1747443375643,0.75775802,103390.0,103380.0,1.42524079]
[1747443381838,0.75751802,103390.0,103380.0,1.42524079]
[1747443382241,0.74752436,103390.0,103380.0,1.42524079]
[1747443382434,0.49816436,103390.0,103380.0,1.42524079]
[1747443382635,0.74748436,103390.0,103380.0,1.42524079]
[1747443383942,0.20808216,103390.0,103380.0,1.88032699]
[1747443384146,0.40146426,103390.0,103380.0,1.88032699]
[1747443384331,0.20808216,103390.0,103380.0,1.88032699]
[1747443384735,0.40146426,103390.0,103380.0,1.88032699]
[1747443386541,0.40146426,103390.0,103380.0,1.83318389]
[1747443387337,0.40146426,103390.0,103380.0,1.88032699]
[1747443387940,0.40146426,103390.0,103380.0,1.83318389]
[1747443390333,0.42607239,103390.0,103380.0,1.83318389]
[1747443393745,0.44057239,103390.0,103380.0,1.83318389]
[1747443394844,0.44057239,103390.0,103380.0,1.78604079]
[1747443395146,0.44057239,103390.0,103380.0,1.83318389]
[1747443398246,0.44057239,103390.0,103380.0,1.88032699]
[1747443399738,0.24719029,103390.0,103380.0,1.88032699]
[1747443399939,0.44057239,103390.0,103380.0,1.88032699]
[1747443400647,0.44057239,103390.0,103380.0,1.83318389]
[1747443402849,0.44057239,103390.0,103380.0,1.63971384]
[1747443403153,0.53667239,103390.0,103380.0,1.83318389]
[1747443409053,0.53667239,103390.0,103380.0,1.47238389]
[1747443409254,0.53667239,103390.0,103380.0,1.78604079]
[1747443409459,0.53667239,103390.0,103380.0,1.83318389]
[1747443410259,0.53667239,103390.0,103380.0,1.78604079]
[1747443410462,0.55282603,103390.0,103380.0,1.80168389]
[1747443411258,0.55282603,103390.0,103380.0,1.44088389]
[1747443411460,0.55282603,103390.0,103380.0,1.80168389]
[1747443411958,0.55282603,103390.0,103380.0,1.39374079]
[1747443412145,0.67282603,103390.0,103380.0,1.14374079]
[1747443412350,0.71996913,103390.0,103380.0,0.7251007]
[1747443412547,0.70996913,103390.0,103380.0,0.7251007]
[1747443413453,0.95996913,103390.0,103380.0,0.6934007]
[1747443415056,0.95996913,103390.0,103380.0,0.7265007]
[1747443417876,1.56924913,103390.0,103380.0,0.6934009]
[1747443420374,1.57873879,103390.0,103380.0,0.6934009]
[1747443422575,1.67546279,103390.0,103380.0,0.5]
[1747443422877,0.1934195,103370.0,103360.0,0.3207409]
[1747443423074,1.0289626,103370.0,103360.0,0.51421094]
[1747443423282,1.1250626,103370.0,103360.0,0.57421094]
[1747443423768,1.1250626,103370.0,103360.0,1.07421094]
[1747443424077,1.2476526,103370.0,103360.0,1.07421094]
[1747443424775,1.1476526,103370.0,103360.0,1.07421094]
[1747443425079,1.2576526,103370.0,103360.0,1.07421094]
[1747443425377,1.2105095,103370.0,103360.0,1.07421094]
[1747443425582,1.2576526,103370.0,103360.0,1.10741094]
[1747443425882,1.2105095,103370.0,103360.0,1.10741094]
[1747443428881,1.2350562,103370.0,103360.0,1.10741094]
[1747443429380,1.2350562,103370.0,103360.0,1.30088099]
[1747443430776,1.1247362,103370.0,103360.0,1.34802409]
[1747443430988,1.1392462,103370.0,103360.0,1.57832409]
[1747443431178,0.8919662,103370.0,103360.0,1.57832409]
[1747443431982,0.5311662,103370.0,103360.0,1.57832409]
[1747443433084,0.5311662,103370.0,103360.0,1.53118099]
[1747443434090,0.9391093,103370.0,103360.0,1.29118099]
[1747443434381,1.1991093,103370.0,103360.0,1.19252229]
[1747443435481,1.1991093,103370.0,103360.0,0.99905224]
[1747443435687,1.1991093,103370.0,103360.0,1.19252229]
[1747443436982,1.1745626,103370.0,103360.0,1.19252229]
[1747443438995,1.1274195,103370.0,103360.0,1.19252229]
[1747443439288,1.2214826,103370.0,103360.0,1.19252229]
[1747443439488,1.2214826,103370.0,103360.0,1.98940849]
[1747443439489,0.2771,103370.0,103360.0,1.98940849]
[1747443439678,0.2171,103370.0,103360.0,1.98940849]
[1747443440076,0.2171,103370.0,103360.0,1.94226539]
[1747443440284,0.4105195,103370.0,103360.0,1.94226539]
[1747443441094,0.41596166,103370.0,103360.0,1.94226539]
[1747443443984,0.41596166,103370.0,103360.0,1.64226539]
[1747443444682,0.41596166,103370.0,103360.0,1.28146539]
[1747443444889,0.41596166,103370.0,103360.0,1.64226539]
[1747443446183,0.41596166,103370.0,103360.0,1.28146539]
[1747443446389,0.41596166,103370.0,103360.0,1.64226539]
[1747443446790,0.44050712,103370.0,103360.0,1.64226539]
[1747443447187,0.44050712,103370.0,103360.0,1.59512229]
[1747443447682,0.44050712,103370.0,103360.0,1.64226539]
[1747443451891,0.44050712,103370.0,103360.0,1.28146539]
[1747443452093,0.44050712,103370.0,103360.0,1.64226539]
[1747443452884,0.44050712,103370.0,103360.0,1.84226539]
[1747443453084,0.44050722,103370.0,103360.0,1.88940849]
[1747443453488,0.44050722,103370.0,103360.0,1.84226539]
[1747443454487,0.24708762,103370.0,103360.0,1.84226539]
[1747443455396,0.26330583,103370.0,103360.0,1.84226539]
[1747443455696,0.26330583,103370.0,103360.0,1.79512229]
[1747443455895,0.26330583,103370.0,103360.0,1.84226539]
[1747443460201,0.22254216,103370.0,103360.0,1.48146539]
[1747443460401,0.22254216,103370.0,103360.0,1.84226539]
[1747443460993,0.22254216,103370.0,103360.0,1.88940849]
[1747443463904,0.2533107,103370.0,103360.0,1.88940849]
[1747443465109,0.2533107,103370.0,103360.0,1.52860849]
[1747443465305,0.2533107,103370.0,103360.0,1.88940849]
[1747443466704,0.2533107,103370.0,103360.0,2.30630849]
[1747443466905,0.2533107,103370.0,103360.0,2.21202229]
[1747443467106,0.2533107,103370.0,103360.0,2.30630849]
[1747443468502,0.26330508,103370.0,103360.0,2.30630849]
[1747443469102,0.26330508,103370.0,103360.0,1.94550849]
[1747443469414,0.26330508,103370.0,103360.0,2.30630849]
[1747443470398,0.26330508,103370.0,103360.0,1.94550849]
[1747443470602,0.04620508,103370.0,103360.0,2.59913159]
[1747443470799,0.03668115,103380.0,103370.0,0.1934196]
[1747443470996,0.03668115,103380.0,103370.0,1.68726589]
[1747443471306,0.21668115,103380.0,103370.0,1.68726589]
[1747443471706,0.21668115,103380.0,103370.0,1.64012279]
[1747443471906,0.21668115,103380.0,103370.0,1.89420279]
[1747443472107,0.21668115,103380.0,103370.0,2.14012279]
[1747443472709,0.21668115,103380.0,103370.0,2.55702279]
[1747443472913,0.21071638,103380.0,103370.0,2.55702279]
[1747443474410,0.21071638,103380.0,103370.0,2.70090189]
[1747443474713,0.21071638,103380.0,103370.0,2.55702279]
[1747443477017,0.18,103380.0,103370.0,2.55702279]
[1747443479516,0.18,103380.0,103370.0,2.19622279]
[1747443479714,0.18,103380.0,103370.0,2.91782279]
[1747443480422,0.18,103380.0,103370.0,2.50092279]
[1747443482419,0.18,103380.0,103370.0,2.25500279]
[1747443482611,0.18,103380.0,103370.0,2.74600279]
[1747443484818,0.18544216,103380.0,103370.0,2.74600279]
[1747443485112,0.18544216,103380.0,103370.0,2.69885969]
[1747443485318,0.18544216,103380.0,103370.0,2.74600279]
[1747443491421,0.18544216,103380.0,103370.0,2.79314589]
[1747443493021,0.14343726,103380.0,103370.0,2.69885969]
[1747443493325,5e-08,103420.0,103410.0,0.58028459]
[1747443493523,0.04488764,103440.0,103430.0,0.1933071]
[1747443493820,0.10608764,103440.0,103430.0,0.3608]
[1747443494019,0.1933258,103420.0,103410.0,0.847109]
[1747443494224,0.4821308,103430.0,103410.0,0.3083322]
[1747443494522,0.0925,103420.0,103410.0,0.8141429]
[1747443494711,0.0925,103420.0,103410.0,1.361286]
[1747443495112,0.2725,103420.0,103410.0,1.4399291]
[1747443495320,0.2725,103420.0,103410.0,1.6827517]
[1747443495630,0.28948764,103440.0,103430.0,0.1933071]
[1747443495631,0.04488764,103440.0,103430.0,0.1933071]
[1747443495918,0.04488764,103440.0,103430.0,0.98592648]
[1747443496121,0.22488764,103440.0,103430.0,1.3069071]
[1747443496331,0.22488764,103440.0,103430.0,1.05022648]
[1747443496825,0.22488764,103440.0,103430.0,1.06481453]
[1747443497416,0.182,103440.0,103430.0,1.05022648]
[1747443497618,0.182,103440.0,103430.0,1.55022648]
[1747443498125,0.182,103440.0,103430.0,1.4784071]
[1747443498428,0.3752884,103440.0,103430.0,0.95712648]
[1747443498722,0.3752884,103440.0,103430.0,0.7253071]
[1747443499024,0.4728884,103440.0,103430.0,0.7253071]
[1747443499221,0.4728884,103440.0,103430.0,0.6933071]
[1747443499725,0.4728884,103440.0,103430.0,0.7263071]
[1747443500119,0.47833056,103440.0,103430.0,0.7263071]
[1747443500829,0.47833056,103440.0,103430.0,0.79812648]
[1747443501123,0.47833056,103440.0,103430.0,1.0871071]
[1747443501320,0.47833056,103440.0,103430.0,1.15812648]
[1747443501921,0.18744216,103440.0,103430.0,1.0871071]
[1747443502124,0.001,103460.0,103440.0,0.0483182]
[1747443502423,0.001,103460.0,103450.0,1.48845912]
[1747443502620,0.0328,103460.0,103450.0,1.84841912]
[1747443503223,0.2128,103460.0,103450.0,1.84841912]
[1747443503924,0.2128,103460.0,103450.0,2.34841912]
[1747443504225,0.2128,103460.0,103450.0,2.53644701]
[1747443504720,0.2128,103460.0,103450.0,2.46462763]
[1747443504921,0.2128,103460.0,103450.0,2.53644701]
[1747443506432,0.2128,103460.0,103450.0,2.19462763]
[1747443506732,0.2128,103460.0,103450.0,2.27188701]
[1747443506931,0.406051,103460.0,103450.0,2.20006763]
[1747443507124,0.476051,103460.0,103450.0,0.9698897]
[1747443507330,0.406051,103460.0,103450.0,1.0853697]
[1747443507639,0.406051,103460.0,103450.0,1.35170908]
[1747443508438,0.406051,103460.0,103450.0,0.9698897]
[1747443508625,0.406051,103460.0,103450.0,1.39170908]
[1747443509530,0.406051,103460.0,103450.0,0.9698897]
[1747443509833,0.406051,103460.0,103450.0,1.3498897]
[1747443510134,0.406051,103460.0,103450.0,0.9698897]
[1747443510324,1.09275038,103460.0,103450.0,0.6932696]
[1747443510650,1.020931,103460.0,103450.0,0.6932696]
[1747443513745,1.020931,103460.0,103450.0,0.7263696]
[1747443514053,1.010931,103460.0,103450.0,0.7263696]
[1747443515357,1.28819254,103460.0,103450.0,0.5]
[1747443515660,1.28819254,103460.0,103450.0,0.6932692]
[1747443515661,1.63485254,103460.0,103450.0,0.6932692]
[1747443515855,1.63485254,103460.0,103450.0,0.5]
[1747443516449,1.87937254,103460.0,103450.0,0.5]
[1747443516853,1.91097254,103460.0,103450.0,0.5]
[1747443517152,0.26510728,103440.0,103430.0,0.00193358]
[1747443517343,1.21982728,103440.0,103430.0,0.00193358]
[1747443517547,1.07172728,103440.0,103430.0,0.00193358]
[1747443517745,1.29172728,103440.0,103430.0,0.00193358]
[1747443518153,1.47172728,103440.0,103430.0,0.00193358]
[1747443519054,0.1933218,103420.0,103410.0,0.2416733]
[1747443519251,0.1933218,103420.0,103410.0,0.2743733]
[1747443519451,0.2541218,103420.0,103410.0,0.2743733]
[1747443519759,0.2541218,103420.0,103410.0,0.7743733]
[1747443520058,0.2859218,103420.0,103410.0,0.8049733]
[1747443520259,0.4659218,103420.0,103410.0,0.8049733]
[1747443520854,0.4659218,103420.0,103410.0,0.99844334]
[1747443521253,0.4659218,103420.0,103410.0,0.5327]